Workbook

Sheet Pregled zabave
B3: Pregled zabave
B6: DOGAĐAJ | D6: SAŽETAK GOSTIJU | H6: ="NERIJEŠENE POTVRDE DOLASKA: "&NeriješenePotvrdeDolaska -> NERIJEŠENE POTVRDE DOLASKA: 2
B7: Bakin 75. rođendan | D7: PREGLED POTVRDA DOLASKA | F7: TROŠAK PO GOSTU | H7: IZNOS PRORAČUNA
D8: Potvrđeni gosti | E8: Ukupno potvrđeno | F8: Hrana | G8: Ostalo | H8: Ukupno
B9: DATUM | D9: Odrasli | E9: =SUMIF(StolZaGosta[DOLAZI?],"=Da",StolZaGosta[ODRASLI]) -> 26 | F9: =StolZaHranu[[#Totals],[TROŠAK PO ODRASLOM]] -> 12.69 kn | G9: =OsnovniTrošakPoGostu -> 18.70 kn | H9: =(SažetakSudionika[[#This Row],[Hrana]]+SažetakSudionika[[#This Row],[Ostalo]])*UkupnoOdraslih -> 816.03 kn
B10: 2011-06-14 | D10: Djeca | E10: =SUMIF(StolZaGosta[DOLAZI?],"=Da",StolZaGosta[DJECA]) -> 20 | F10: =StolZaHranu[[#Totals],[TROŠAK PO DJETETU]] -> 7.25 kn | G10: =OsnovniTrošakPoGostu -> 18.70 kn | H10: =(SažetakSudionika[[#This Row],[Hrana]]+SažetakSudionika[[#This Row],[Ostalo]])*UkupnoDjece -> 518.97 kn
D11: Ukupno | E11: =SUBTOTAL(109,SažetakSudionika[Ukupno potvrđeno]) -> 46 | F11: ="Prosjek "&TEXT(SUBTOTAL(101,SažetakSudionika[Hrana]),"#.##0,00 kn") -> Prosjek 9,97 kn | G11: ="Prosjek "&TEXT(SUBTOTAL(101,SažetakSudionika[Ostalo]),"#.##0,00 kn") -> Prosjek 18,70 kn | H11: =SUBTOTAL(109,SažetakSudionika[Ukupno]) -> 1,335.00 kn
B12: VRIJEME
B13: 14.00 do 16.00 h
B15: MJESTO | D15: SAŽETAK PRORAČUNA
B16: Kuća tete Zrinke | D16: STAVKA | E16: BROJ | F16: IZNOS PRORAČUNA | G16: UKUPNI TROŠAK | H16: RAZLIKA
D17: Hrana i piće | E17: =COUNTA(StolZaHranu[ARTIKL HRANE ILI PIĆA]) -> 18 | F17: 500.00 kn | G17: =StolZaHranu[[#Totals],[UKUPNI TROŠAK]] -> 475.00 kn | H17: =PregledProračuna[[#This Row],[IZNOS PRORAČUNA]]-PregledProračuna[[#This Row],[UKUPNI TROŠAK]] -> 25.00 kn
D18: =ZaglavljeTablice1 -> Oprema i potrepštine | E18: =COUNTA(TablicaProračuna1[Cijena]) -> 7 | F18: 400.00 kn | G18: =TablicaProračuna1[[#Totals],[Cijena]] -> 400.00 kn | H18: =PregledProračuna[[#This Row],[IZNOS PRORAČUNA]]-PregledProračuna[[#This Row],[UKUPNI TROŠAK]] -> 0.00 kn
D19: =ZaglavljeTablice2 -> Ukrasi | E19: =COUNTA(TablicaProračuna2[Ukrasi]) -> 4 | F19: 150.00 kn | G19: =TablicaProračuna2[[#Totals],[Cijena]] -> 175.00 kn | H19: =PregledProračuna[[#This Row],[IZNOS PRORAČUNA]]-PregledProračuna[[#This Row],[UKUPNI TROŠAK]] -> -25.00 kn
D20: =ZaglavljeTablice3 -> Ostalo | E20: =COUNTA(TablicaProračuna3[Ostalo]) -> 4 | F20: 300.00 kn | G20: =TablicaProračuna3[[#Totals],[Cijena]] -> 285.00 kn | H20: =PregledProračuna[[#This Row],[IZNOS PRORAČUNA]]-PregledProračuna[[#This Row],[UKUPNI TROŠAK]] -> 15.00 kn
D21: Ukupno | E21: =SUBTOTAL(109,PregledProračuna[BROJ]) -> 33 | F21: =SUBTOTAL(109,PregledProračuna[IZNOS PRORAČUNA]) -> 1,350.00 kn | G21: =SUBTOTAL(109,PregledProračuna[UKUPNI TROŠAK]) -> 1,335.00 kn | H21: =SUBTOTAL(109,PregledProračuna[RAZLIKA]) -> 15.00 kn

Sheet Popis gostiju
B3: Popis gostiju
B7: IME I PREZIME | C7: ADRESA | D7: GRAD | E7: ŽUPANIJA | F7: POŠTANSKI BROJ | G7: TELEFON | H7: E-POŠTA | I7: DOLAZI? | J7: DJECA | K7: ODRASLI | L7: UKUPNO
B8: Obitelj 1 | C8: Adresa 1 | D8: Grad 1 | E8: Županija 1 | F8: Poštanski broj 1 | G8: Telefon 1 | H8: E-pošta 1 | I8: Ne | J8: 2 | K8: 2 | L8: =SUM(StolZaGosta[[#This Row],[DJECA]:[ODRASLI]]) -> 4
B9: Obitelj 2 | C9: Adresa 2 | D9: Grad 2 | E9: Županija 2 | F9: Poštanski broj 2 | G9: Telefon 2 | H9: E-pošta 2 | I9: Da | J9: 1 | K9: 1 | L9: =SUM(StolZaGosta[[#This Row],[DJECA]:[ODRASLI]]) -> 2
B10: Obitelj 3 | C10: Adresa 3 | D10: Grad 3 | E10: Županija 3 | F10: Poštanski broj 3 | G10: Telefon 3 | H10: E-pošta 3 | I10: Da | J10: 3 | K10: 3 | L10: =SUM(StolZaGosta[[#This Row],[DJECA]:[ODRASLI]]) -> 6
B11: Obitelj 4 | C11: Adresa 4 | D11: Grad 4 | E11: Županija 4 | F11: Poštanski broj 4 | G11: Telefon 4 | H11: E-pošta 4 | K11: 2 | L11: =SUM(StolZaGosta[[#This Row],[DJECA]:[ODRASLI]]) -> 2
B12: Obitelj 5 | C12: Adresa 5 | D12: Grad 5 | E12: Županija 5 | F12: Poštanski broj 5 | G12: Telefon 5 | H12: E-pošta 5 | I12: Da | J12: 4 | K12: 3 | L12: =SUM(StolZaGosta[[#This Row],[DJECA]:[ODRASLI]]) -> 7
B13: Obitelj 6 | C13: Adresa 6 | D13: Grad 6 | E13: Županija 6 | F13: Poštanski broj 6 | G13: Telefon 6 | H13: E-pošta 6 | I13: Da | J13: 2 | K13: 2 | L13: =SUM(StolZaGosta[[#This Row],[DJECA]:[ODRASLI]]) -> 4
B14: Obitelj 7 | C14: Adresa 7 | D14: Grad 7 | E14: Županija 7 | F14: Poštanski broj 7 | G14: Telefon 7 | H14: E-pošta 7 | I14: Da | J14: 1 | K14: 4 | L14: =SUM(StolZaGosta[[#This Row],[DJECA]:[ODRASLI]]) -> 5
B15: Obitelj 8 | C15: Adresa 8 | D15: Grad 8 | E15: Županija 8 | F15: Poštanski broj 8 | G15: Telefon 8 | H15: E-pošta 8 | I15: Ne | J15: 5 | K15: 3 | L15: =SUM(StolZaGosta[[#This Row],[DJECA]:[ODRASLI]]) -> 8
B16: Obitelj 9 | C16: Adresa 9 | D16: Grad 9 | E16: Županija 9 | F16: Poštanski broj 9 | G16: Telefon 9 | H16: E-pošta 9 | I16: Da | J16: 3 | K16: 2 | L16: =SUM(StolZaGosta[[#This Row],[DJECA]:[ODRASLI]]) -> 5
B17: Obitelj 10 | C17: Adresa 10 | D17: Grad 10 | E17: Županija 10 | F17: Poštanski broj 10 | G17: Telefon 10 | H17: E-pošta 10 | I17: Da | K17: 4 | L17: =SUM(StolZaGosta[[#This Row],[DJECA]:[ODRASLI]]) -> 4
B18: Obitelj 11 | C18: Adresa 11 | D18: Grad 11 | E18: Županija 11 | F18: Poštanski broj 11 | G18: Telefon 11 | H18: E-pošta 11 | I18: Da | J18: 3 | K18: 5 | L18: =SUM(StolZaGosta[[#This Row],[DJECA]:[ODRASLI]]) -> 8
B19: Obitelj 12 | C19: Adresa 12 | D19: Grad 12 | E19: Županija 12 | F19: Poštanski broj 12 | G19: Telefon 12 | H19: E-pošta 12 | I19: Ne | J19: 2 | K19: 3 | L19: =SUM(StolZaGosta[[#This Row],[DJECA]:[ODRASLI]]) -> 5
B20: Obitelj 13 | C20: Adresa 13 | D20: Grad 13 | E20: Županija 13 | F20: Poštanski broj 13 | G20: Telefon 13 | H20: E-pošta 13 | I20: Da | J20: 3 | K20: 2 | L20: =SUM(StolZaGosta[[#This Row],[DJECA]:[ODRASLI]]) -> 5
B21: Obitelj 14 | C21: Adresa 14 | D21: Grad 14 | E21: Županija 14 | F21: Poštanski broj 14 | G21: Telefon 14 | H21: E-pošta 14 | I21: Ne | K21: 1 | L21: =SUM(StolZaGosta[[#This Row],[DJECA]:[ODRASLI]]) -> 1
B22: Obitelj 15 | C22: Adresa 15 | D22: Grad 15 | E22: Županija 15 | F22: Poštanski broj 15 | G22: Telefon 15 | H22: E-pošta 15 | K22: 2 | L22: =SUM(StolZaGosta[[#This Row],[DJECA]:[ODRASLI]]) -> 2

Sheet Hrana i piće
B3: Hrana i piće
B5: Unesite cijenu i procijenjene porcije da biste automatski izračunali ukupan broj komada i cijenu po porciji na temelju ukupnog broja gostiju
B6: ARTIKL HRANE ILI PIĆA | C6: UKUPNI TROŠAK | D6: PORCIJA PO DJETETU | E6: PORCIJA PO ODRASLOM | F6: UKUPNO PORCIJA | G6: TROŠAK PO PORCIJI | H6: TROŠAK PO DJETETU | I6: TROŠAK PO ODRASLOM | J6: NAPOMENE
B7: Sokovi | C7: 15.00 kn | D7: 0.5 | E7: 2 | F7: =(StolZaHranu[[#This Row],[PORCIJA PO DJETETU]]*UkupnoDjece)+(StolZaHranu[[#This Row],[PORCIJA PO ODRASLOM]]*UkupnoOdraslih) -> 62 | G7: =IFERROR(StolZaHranu[[#This Row],[UKUPNI TROŠAK]]/StolZaHranu[[#This Row],[UKUPNO PORCIJA]],"") -> 0.24 kn | H7: =IFERROR(StolZaHranu[[#This Row],[TROŠAK PO PORCIJI]]*StolZaHranu[[#This Row],[PORCIJA PO DJETETU]],"") -> 0.12 kn | I7: =IFERROR(StolZaHranu[[#This Row],[TROŠAK PO PORCIJI]]*StolZaHranu[[#This Row],[PORCIJA PO ODRASLOM]],"") -> 0.48 kn | J7: Dvolitrenke
B8: Sokovi | C8: 15.00 kn | D8: 2 | E8: 0 | F8: =(StolZaHranu[[#This Row],[PORCIJA PO DJETETU]]*UkupnoDjece)+(StolZaHranu[[#This Row],[PORCIJA PO ODRASLOM]]*UkupnoOdraslih) -> 40 | G8: =IFERROR(StolZaHranu[[#This Row],[UKUPNI TROŠAK]]/StolZaHranu[[#This Row],[UKUPNO PORCIJA]],"") -> 0.38 kn | H8: =IFERROR(StolZaHranu[[#This Row],[TROŠAK PO PORCIJI]]*StolZaHranu[[#This Row],[PORCIJA PO DJETETU]],"") -> 0.75 kn | I8: =IFERROR(StolZaHranu[[#This Row],[TROŠAK PO PORCIJI]]*StolZaHranu[[#This Row],[PORCIJA PO ODRASLOM]],"") -> 0.00 kn | J8: Jabuka i bijelo grožđe
B9: Vino | C9: 50.00 kn | D9: 0 | E9: 2 | F9: =(StolZaHranu[[#This Row],[PORCIJA PO DJETETU]]*UkupnoDjece)+(StolZaHranu[[#This Row],[PORCIJA PO ODRASLOM]]*UkupnoOdraslih) -> 52 | G9: =IFERROR(StolZaHranu[[#This Row],[UKUPNI TROŠAK]]/StolZaHranu[[#This Row],[UKUPNO PORCIJA]],"") -> 0.96 kn | H9: =IFERROR(StolZaHranu[[#This Row],[TROŠAK PO PORCIJI]]*StolZaHranu[[#This Row],[PORCIJA PO DJETETU]],"") -> 0.00 kn | I9: =IFERROR(StolZaHranu[[#This Row],[TROŠAK PO PORCIJI]]*StolZaHranu[[#This Row],[PORCIJA PO ODRASLOM]],"") -> 1.92 kn
B10: Torta | C10: 75.00 kn | D10: 1 | E10: 1 | F10: =(StolZaHranu[[#This Row],[PORCIJA PO DJETETU]]*UkupnoDjece)+(StolZaHranu[[#This Row],[PORCIJA PO ODRASLOM]]*UkupnoOdraslih) -> 46 | G10: =IFERROR(StolZaHranu[[#This Row],[UKUPNI TROŠAK]]/StolZaHranu[[#This Row],[UKUPNO PORCIJA]],"") -> 1.63 kn | H10: =IFERROR(StolZaHranu[[#This Row],[TROŠAK PO PORCIJI]]*StolZaHranu[[#This Row],[PORCIJA PO DJETETU]],"") -> 1.63 kn | I10: =IFERROR(StolZaHranu[[#This Row],[TROŠAK PO PORCIJI]]*StolZaHranu[[#This Row],[PORCIJA PO ODRASLOM]],"") -> 1.63 kn | J10: Naručiti iz lokalne pekarnice
B11: Sladoled | C11: 20.00 kn | D11: 1 | E11: 1.5 | F11: =(StolZaHranu[[#This Row],[PORCIJA PO DJETETU]]*UkupnoDjece)+(StolZaHranu[[#This Row],[PORCIJA PO ODRASLOM]]*UkupnoOdraslih) -> 59 | G11: =IFERROR(StolZaHranu[[#This Row],[UKUPNI TROŠAK]]/StolZaHranu[[#This Row],[UKUPNO PORCIJA]],"") -> 0.34 kn | H11: =IFERROR(StolZaHranu[[#This Row],[TROŠAK PO PORCIJI]]*StolZaHranu[[#This Row],[PORCIJA PO DJETETU]],"") -> 0.34 kn | I11: =IFERROR(StolZaHranu[[#This Row],[TROŠAK PO PORCIJI]]*StolZaHranu[[#This Row],[PORCIJA PO ODRASLOM]],"") -> 0.51 kn
B12: Šalice s pudingom | C12: 15.00 kn | D12: 1 | E12: 0 | F12: =(StolZaHranu[[#This Row],[PORCIJA PO DJETETU]]*UkupnoDjece)+(StolZaHranu[[#This Row],[PORCIJA PO ODRASLOM]]*UkupnoOdraslih) -> 20 | G12: =IFERROR(StolZaHranu[[#This Row],[UKUPNI TROŠAK]]/StolZaHranu[[#This Row],[UKUPNO PORCIJA]],"") -> 0.75 kn | H12: =IFERROR(StolZaHranu[[#This Row],[TROŠAK PO PORCIJI]]*StolZaHranu[[#This Row],[PORCIJA PO DJETETU]],"") -> 0.75 kn | I12: =IFERROR(StolZaHranu[[#This Row],[TROŠAK PO PORCIJI]]*StolZaHranu[[#This Row],[PORCIJA PO ODRASLOM]],"") -> 0.00 kn | J12: Kupiti gotove čašice: vanilija i čokolada
B13: Punjene gljive | C13: 32.00 kn | D13: 1 | E13: 2 | F13: =(StolZaHranu[[#This Row],[PORCIJA PO DJETETU]]*UkupnoDjece)+(StolZaHranu[[#This Row],[PORCIJA PO ODRASLOM]]*UkupnoOdraslih) -> 72 | G13: =IFERROR(StolZaHranu[[#This Row],[UKUPNI TROŠAK]]/StolZaHranu[[#This Row],[UKUPNO PORCIJA]],"") -> 0.44 kn | H13: =IFERROR(StolZaHranu[[#This Row],[TROŠAK PO PORCIJI]]*StolZaHranu[[#This Row],[PORCIJA PO DJETETU]],"") -> 0.44 kn | I13: =IFERROR(StolZaHranu[[#This Row],[TROŠAK PO PORCIJI]]*StolZaHranu[[#This Row],[PORCIJA PO ODRASLOM]],"") -> 0.89 kn | J13: Šampinjoni punjeni svježim sirom i kobasicama
B14: Brusketi | C14: 22.00 kn | D14: 0 | E14: 3 | F14: =(StolZaHranu[[#This Row],[PORCIJA PO DJETETU]]*UkupnoDjece)+(StolZaHranu[[#This Row],[PORCIJA PO ODRASLOM]]*UkupnoOdraslih) -> 78 | G14: =IFERROR(StolZaHranu[[#This Row],[UKUPNI TROŠAK]]/StolZaHranu[[#This Row],[UKUPNO PORCIJA]],"") -> 0.28 kn | H14: =IFERROR(StolZaHranu[[#This Row],[TROŠAK PO PORCIJI]]*StolZaHranu[[#This Row],[PORCIJA PO DJETETU]],"") -> 0.00 kn | I14: =IFERROR(StolZaHranu[[#This Row],[TROŠAK PO PORCIJI]]*StolZaHranu[[#This Row],[PORCIJA PO ODRASLOM]],"") -> 0.85 kn | J14: Rajčica i bosiljak
B15: Dimljeni losos | C15: 50.00 kn | D15: 1 | E15: 2 | F15: =(StolZaHranu[[#This Row],[PORCIJA PO DJETETU]]*UkupnoDjece)+(StolZaHranu[[#This Row],[PORCIJA PO ODRASLOM]]*UkupnoOdraslih) -> 72 | G15: =IFERROR(StolZaHranu[[#This Row],[UKUPNI TROŠAK]]/StolZaHranu[[#This Row],[UKUPNO PORCIJA]],"") -> 0.69 kn | H15: =IFERROR(StolZaHranu[[#This Row],[TROŠAK PO PORCIJI]]*StolZaHranu[[#This Row],[PORCIJA PO DJETETU]],"") -> 0.69 kn | I15: =IFERROR(StolZaHranu[[#This Row],[TROŠAK PO PORCIJI]]*StolZaHranu[[#This Row],[PORCIJA PO ODRASLOM]],"") -> 1.39 kn
B16: Mini peciva | C16: 20.00 kn | D16: 1 | E16: 2 | F16: =(StolZaHranu[[#This Row],[PORCIJA PO DJETETU]]*UkupnoDjece)+(StolZaHranu[[#This Row],[PORCIJA PO ODRASLOM]]*UkupnoOdraslih) -> 72 | G16: =IFERROR(StolZaHranu[[#This Row],[UKUPNI TROŠAK]]/StolZaHranu[[#This Row],[UKUPNO PORCIJA]],"") -> 0.28 kn | H16: =IFERROR(StolZaHranu[[#This Row],[TROŠAK PO PORCIJI]]*StolZaHranu[[#This Row],[PORCIJA PO DJETETU]],"") -> 0.28 kn | I16: =IFERROR(StolZaHranu[[#This Row],[TROŠAK PO PORCIJI]]*StolZaHranu[[#This Row],[PORCIJA PO ODRASLOM]],"") -> 0.56 kn | J16: 4 vrećice – miješano
B17: Sirni namaz | C17: 10.00 kn | D17: 1 | E17: 2 | F17: =(StolZaHranu[[#This Row],[PORCIJA PO DJETETU]]*UkupnoDjece)+(StolZaHranu[[#This Row],[PORCIJA PO ODRASLOM]]*UkupnoOdraslih) -> 72 | G17: =IFERROR(StolZaHranu[[#This Row],[UKUPNI TROŠAK]]/StolZaHranu[[#This Row],[UKUPNO PORCIJA]],"") -> 0.14 kn | H17: =IFERROR(StolZaHranu[[#This Row],[TROŠAK PO PORCIJI]]*StolZaHranu[[#This Row],[PORCIJA PO DJETETU]],"") -> 0.14 kn | I17: =IFERROR(StolZaHranu[[#This Row],[TROŠAK PO PORCIJI]]*StolZaHranu[[#This Row],[PORCIJA PO ODRASLOM]],"") -> 0.28 kn | J17: 2 velike posude
B18: Kapare | C18: 12.00 kn | D18: 1 | E18: 2 | F18: =(StolZaHranu[[#This Row],[PORCIJA PO DJETETU]]*UkupnoDjece)+(StolZaHranu[[#This Row],[PORCIJA PO ODRASLOM]]*UkupnoOdraslih) -> 72 | G18: =IFERROR(StolZaHranu[[#This Row],[UKUPNI TROŠAK]]/StolZaHranu[[#This Row],[UKUPNO PORCIJA]],"") -> 0.17 kn | H18: =IFERROR(StolZaHranu[[#This Row],[TROŠAK PO PORCIJI]]*StolZaHranu[[#This Row],[PORCIJA PO DJETETU]],"") -> 0.17 kn | I18: =IFERROR(StolZaHranu[[#This Row],[TROŠAK PO PORCIJI]]*StolZaHranu[[#This Row],[PORCIJA PO ODRASLOM]],"") -> 0.33 kn | J18: 3 staklenke
B19: Pileća krila | C19: 45.00 kn | D19: 2 | E19: 4 | F19: =(StolZaHranu[[#This Row],[PORCIJA PO DJETETU]]*UkupnoDjece)+(StolZaHranu[[#This Row],[PORCIJA PO ODRASLOM]]*UkupnoOdraslih) -> 144 | G19: =IFERROR(StolZaHranu[[#This Row],[UKUPNI TROŠAK]]/StolZaHranu[[#This Row],[UKUPNO PORCIJA]],"") -> 0.31 kn | H19: =IFERROR(StolZaHranu[[#This Row],[TROŠAK PO PORCIJI]]*StolZaHranu[[#This Row],[PORCIJA PO DJETETU]],"") -> 0.63 kn | I19: =IFERROR(StolZaHranu[[#This Row],[TROŠAK PO PORCIJI]]*StolZaHranu[[#This Row],[PORCIJA PO ODRASLOM]],"") -> 1.25 kn | J19: Kupiti u lokalnoj trgovini
B20: Namaz od slanutka | C20: 10.00 kn | D20: 4 | E20: 6 | F20: =(StolZaHranu[[#This Row],[PORCIJA PO DJETETU]]*UkupnoDjece)+(StolZaHranu[[#This Row],[PORCIJA PO ODRASLOM]]*UkupnoOdraslih) -> 236 | G20: =IFERROR(StolZaHranu[[#This Row],[UKUPNI TROŠAK]]/StolZaHranu[[#This Row],[UKUPNO PORCIJA]],"") -> 0.04 kn | H20: =IFERROR(StolZaHranu[[#This Row],[TROŠAK PO PORCIJI]]*StolZaHranu[[#This Row],[PORCIJA PO DJETETU]],"") -> 0.17 kn | I20: =IFERROR(StolZaHranu[[#This Row],[TROŠAK PO PORCIJI]]*StolZaHranu[[#This Row],[PORCIJA PO ODRASLOM]],"") -> 0.25 kn | J20: Pripremiti večer prije
B21: Čips s parmezanom | C21: 14.00 kn | D21: 4 | E21: 6 | F21: =(StolZaHranu[[#This Row],[PORCIJA PO DJETETU]]*UkupnoDjece)+(StolZaHranu[[#This Row],[PORCIJA PO ODRASLOM]]*UkupnoOdraslih) -> 236 | G21: =IFERROR(StolZaHranu[[#This Row],[UKUPNI TROŠAK]]/StolZaHranu[[#This Row],[UKUPNO PORCIJA]],"") -> 0.06 kn | H21: =IFERROR(StolZaHranu[[#This Row],[TROŠAK PO PORCIJI]]*StolZaHranu[[#This Row],[PORCIJA PO DJETETU]],"") -> 0.24 kn | I21: =IFERROR(StolZaHranu[[#This Row],[TROŠAK PO PORCIJI]]*StolZaHranu[[#This Row],[PORCIJA PO ODRASLOM]],"") -> 0.36 kn | J21: Pripremiti večer prije
B22: Miješano povrće | C22: 30.00 kn | D22: 4 | E22: 10 | F22: =(StolZaHranu[[#This Row],[PORCIJA PO DJETETU]]*UkupnoDjece)+(StolZaHranu[[#This Row],[PORCIJA PO ODRASLOM]]*UkupnoOdraslih) -> 340 | G22: =IFERROR(StolZaHranu[[#This Row],[UKUPNI TROŠAK]]/StolZaHranu[[#This Row],[UKUPNO PORCIJA]],"") -> 0.09 kn | H22: =IFERROR(StolZaHranu[[#This Row],[TROŠAK PO PORCIJI]]*StolZaHranu[[#This Row],[PORCIJA PO DJETETU]],"") -> 0.35 kn | I22: =IFERROR(StolZaHranu[[#This Row],[TROŠAK PO PORCIJI]]*StolZaHranu[[#This Row],[PORCIJA PO ODRASLOM]],"") -> 0.88 kn | J22: Mrkva, celer, brokula, cvjetača, crvena i zelena paprika
B23: Namaz od sira | C23: 15.00 kn | D23: 5 | E23: 10 | F23: =(StolZaHranu[[#This Row],[PORCIJA PO DJETETU]]*UkupnoDjece)+(StolZaHranu[[#This Row],[PORCIJA PO ODRASLOM]]*UkupnoOdraslih) -> 360 | G23: =IFERROR(StolZaHranu[[#This Row],[UKUPNI TROŠAK]]/StolZaHranu[[#This Row],[UKUPNO PORCIJA]],"") -> 0.04 kn | H23: =IFERROR(StolZaHranu[[#This Row],[TROŠAK PO PORCIJI]]*StolZaHranu[[#This Row],[PORCIJA PO DJETETU]],"") -> 0.21 kn | I23: =IFERROR(StolZaHranu[[#This Row],[TROŠAK PO PORCIJI]]*StolZaHranu[[#This Row],[PORCIJA PO ODRASLOM]],"") -> 0.42 kn | J23: Miješano: sirni namaz, tvrdi sir s orasima
B24: Krekeri | C24: 25.00 kn | D24: 5 | E24: 10 | F24: =(StolZaHranu[[#This Row],[PORCIJA PO DJETETU]]*UkupnoDjece)+(StolZaHranu[[#This Row],[PORCIJA PO ODRASLOM]]*UkupnoOdraslih) -> 360 | G24: =IFERROR(StolZaHranu[[#This Row],[UKUPNI TROŠAK]]/StolZaHranu[[#This Row],[UKUPNO PORCIJA]],"") -> 0.07 kn | H24: =IFERROR(StolZaHranu[[#This Row],[TROŠAK PO PORCIJI]]*StolZaHranu[[#This Row],[PORCIJA PO DJETETU]],"") -> 0.35 kn | I24: =IFERROR(StolZaHranu[[#This Row],[TROŠAK PO PORCIJI]]*StolZaHranu[[#This Row],[PORCIJA PO ODRASLOM]],"") -> 0.69 kn | J24: Miješano
B25: Ukupno | C25: =SUBTOTAL(109,StolZaHranu[UKUPNI TROŠAK]) -> 475.00 kn | D25: =SUBTOTAL(109,StolZaHranu[PORCIJA PO DJETETU]) -> 34.5 | E25: =SUBTOTAL(109,StolZaHranu[PORCIJA PO ODRASLOM]) -> 65.5 | F25: =SUBTOTAL(109,StolZaHranu[UKUPNO PORCIJA]) -> 2393 | G25: =SUBTOTAL(109,StolZaHranu[TROŠAK PO PORCIJI]) -> 6.92 kn | H25: =SUBTOTAL(109,StolZaHranu[TROŠAK PO DJETETU]) -> 7.25 kn | I25: =SUBTOTAL(109,StolZaHranu[TROŠAK PO ODRASLOM]) -> 12.69 kn

Sheet Ostale potrepštine
B3: Ostale potrepštine
B6: Oprema i potrepštine | C6: Cijena | D6: Kupljeno | E6: Napomene
B7: Najam sobe/sale | C7: 250.00 kn | D7: Da
B8: Stolnjaci | C8: 30.00 kn | D8: Da | E8: Najam
B9: Stolovi i stolci | C9: 0.00 kn | E9: Obuhvaćeno najmom sale
B10: Podlošci za pića | C10: 25.00 kn
B11: Ubrusi | C11: 20.00 kn | E11: Najam
B12: Konobari | C12: 50.00 kn | E12: Najam
B13: Čaše | C13: 25.00 kn | E13: Najam
B14: Ukupno | C14: =SUBTOTAL(109,TablicaProračuna1[Cijena]) -> 400.00 kn
B17: Ukrasi | C17: Cijena | D17: Kupljeno | E17: Napomene
B18: Baloni | C18: 25.00 kn
B19: Spremnik s helijem | C19: 50.00 kn | E19: Najam
B20: Stolni aranžmani | C20: 100.00 kn | D20: Da | E20: 10 ukupno
B21: Staklene vaze | C21: 0.00 kn | E21: Posuđeno od Sandre
B22: Ukupno | C22: =SUBTOTAL(109,TablicaProračuna2[Cijena]) -> 175.00 kn
B25: Ostalo | C25: Cijena | D25: Kupljeno | E25: Napomene
B26: Pozivnice | C26: 50.00 kn | D26: Da
B27: Poštarina | C27: 60.00 kn | D27: Da
B28: Fotograf | C28: 125.00 kn | E28: 2 sata (14.00 – 16.00)
B29: Pokloni za goste | C29: 50.00 kn
B30: Ukupno | C30: =SUBTOTAL(109,TablicaProračuna3[Cijena]) -> 285.00 kn

Sheet Rešetka rasporeda sjedenja
A1: Raspored sjedenja
AH35: *1 kvadrat = otprilike 0,1 kvadratni metar
A36: Napomene | T36: =" Ukupno potvrđenih gostiju: "&PotvrđeniGosti -> Ukupno potvrđenih gostiju: 46
T37: Možete koristiti bilo koji od sljedećih rasporeda stolova:
U38: =ROUNDUP(PotvrđeniGosti/6,0)&" okrugli stolovi od 137 cm (za šest osoba)" -> 8 okrugli stolovi od 137 cm (za šest osoba)
U39: =ROUNDUP(PotvrđeniGosti/8,0) &" okrugli stolovi od 150 cm (za osam osoba)" -> 6 okrugli stolovi od 150 cm (za osam osoba)
U40: =ROUNDUP(PotvrđeniGosti/10,0)&" okrugli stolovi od 183 cm (za deset osoba)" -> 5 okrugli stolovi od 183 cm (za deset osoba)
U41: =ROUNDUP(PotvrđeniGosti/6,0)& " četvrtasti stolovi 76 x 183 cm (za šest osoba)" -> 8 četvrtasti stolovi 76 x 183 cm (za šest osoba)
U42: =ROUNDUP(PotvrđeniGosti/8,0)&"četvrtasti stolovi 76 x 255 cm (za osam osoba)" -> 6četvrtasti stolovi 76 x 255 cm (za osam osoba)
T43: (željeni prostor između stolova: 100 cm)
